fUSD/lending_fUSD_20240907
["ID","MTS","AMOUNT","RATE_DAILY","PERIOD"]
[337487858,1725696647271,-500.0,0.00014794,2]
[337487860,1725696647280,-500.0,0.00014794,2]
[337487862,1725696647289,-500.0,0.00014794,2]
[337487864,1725696647299,-504.35342015,0.00014794,2]
[337487866,1725696647308,-151.0,0.00014794,2]
[337487868,1725696647319,-1419.39,0.00014794,2]
[337487870,1725696647328,-1419.39,0.00014794,2]
[337487872,1725696647337,-1419.39,0.00014794,2]
[337487874,1725696647347,-1419.39,0.00014794,2]
[337487876,1725696647356,-1419.39,0.00014794,2]
[337487878,1725696647365,-1419.39,0.00014794,2]
[337487880,1725696647375,-1419.39,0.00014794,2]
[337487882,1725696647384,-1419.39,0.00014794,2]
[337487884,1725696647393,-1419.39,0.00014794,2]
[337487886,1725696647402,-1419.39,0.00014794,2]
[337487887,1725696647411,-1419.39,0.00014794,2]
[337487890,1725696647421,-1419.39,0.00014794,2]
[337487891,1725696647430,-1419.39,0.00014794,2]
[337487893,1725696647439,-1419.39,0.00014794,2]
[337487895,1725696647448,-1419.39,0.00014794,2]
[337487897,1725696647458,-1419.39,0.00014794,2]
[337487899,1725696647467,-1419.39,0.00014794,2]
[337487901,1725696647476,-1419.39,0.00014794,2]
[337487903,1725696647485,-1419.39,0.00014794,2]
[337487905,1725696647495,-1419.39,0.00014794,2]
[337487907,1725696647504,-1419.39,0.00014794,2]
[337487909,1725696647513,-1419.39,0.00014794,2]
[337487912,1725696647525,-1419.39,0.00014794,2]
[337487914,1725696647534,-1419.62406819,0.00014794,2]
[337487916,1725696647543,-1463.04,0.00014794,2]
[337487917,1725696647553,-500.0,0.00014794,2]
[337487919,1725696647562,-1463.04,0.00014794,2]
[337487921,1725696647571,-500.0,0.00014794,2]
[337487923,1725696647579,-1463.04,0.00014794,2]
[337487925,1725696647589,-500.0,0.00014794,2]
[337487927,1725696647597,-1463.04,0.00014794,2]
[337487929,1725696647606,-500.0,0.00014794,2]
[337487931,1725696647615,-1463.04,0.00014794,2]
[337487933,1725696647625,-500.0,0.00014794,2]
[337487935,1725696647634,-1463.04,0.00014794,2]
[337487937,1725696647643,-500.0,0.00014794,2]
[337487938,1725696647653,-1463.04,0.00014794,2]
[337487939,1725696647663,-1463.04,0.00014794,2]
[337487940,1725696647672,-540.59603296,0.00014794,2]
[337487941,1725696647682,-1463.04,0.00014794,2]
[337487942,1725696647691,-1463.04,0.00014794,2]
[337487943,1725696647700,-1463.04,0.00014794,2]
[337487944,1725696647711,-1463.04,0.00014794,2]
[337487945,1725696647723,-1463.04,0.00014794,2]
[337487946,1725696647736,-1463.04,0.00014794,2]
[337487948,1725696647746,-1352.15894146,0.00014794,2]
[337487956,1725696647817,281.31,0.00010959,2]
[337488298,1725696771755,234.42,0.00010959,2]
[337488299,1725696782298,195.35,0.00010959,2]
[337488300,1725696792849,162.8,0.00010959,2]
[337488301,1725696805417,814.0,0.00010959,2]
[337488303,1725696955763,611.6,0.00011284,2]
[337488304,1725697112168,154.83,0.00010959,2]
[337488306,1725697533022,581.02,0.00011034,2]
[337488341,1725697681023,1085.19216691,0.0001,2]
[337488342,1725697684816,159.19,0.00010959,2]
[337488445,1725697831398,-625.57,0.00012079,2]
[337488446,1725697831408,-733.78,0.00012175,2]
[337488447,1725697831417,-500.0,0.00012175,2]
[337488448,1725697831427,-163.17,0.00012227,2]
[337488449,1725697831436,-150.0,0.00012499,2]
[337488450,1725697831445,-490.817,0.000125,2]
[337488451,1725697831455,-2655.0122,0.000125,2]
[337488452,1725697831464,-483.0291,0.000125,2]
[337488453,1725697831474,-2879.50498834,0.000125,2]
[337488454,1725697831489,-327.39805379,0.000125,2]
[337488455,1725697831571,-1143.0,0.000125,2]
[337488456,1725697831583,-328.01300429,0.000125,2]
[337488457,1725697831595,-328.4348001,0.000125,2]
[337488458,1725697831637,-883.21688732,0.000125,2]
[337488459,1725697831646,-7500.0,0.000125,2]
[337488460,1725697831655,-49313.24611133,0.000125,2]
[337488461,1725697831664,-500.0,0.00012573,2]
[337488462,1725697831673,-500.0,0.00012573,2]
[337488463,1725697831683,-500.0,0.00012599,2]
[337488464,1725697831692,-509.57360251,0.00012599,2]
[337488466,1725697831701,-500.0,0.00012599,2]
[337488467,1725697831710,-500.0,0.00012599,2]
[337488469,1725697831720,-500.0,0.00012599,2]
[337488471,1725697831729,-500.0,0.00012599,2]
[337488489,1725697831738,-500.0,0.00012599,2]
[337488491,1725697831907,-500.0,0.00012599,2]
[337488493,1725697831917,-235.65727592,0.00012599,2]
[337488495,1725697831926,-357.46329084,0.00012599,2]
[337488497,1725697831934,-286.30213595,0.00012599,2]
[337488498,1725697831943,-500.0,0.00012599,2]
[337488499,1725697831952,-500.0,0.00012599,2]
[337488500,1725697831961,-500.0,0.00012599,2]
[337488501,1725697831970,-342.44683194,0.00012599,2]
[337488502,1725697831979,-500.0,0.00012599,2]
[337488503,1725697831988,-500.0,0.00012599,2]
[337488504,1725697831997,-500.0,0.00012599,2]
[337488506,1725697832006,-1000.0,0.000126,2]
[337488508,1725697832015,-44798.5817625,0.000126,2]
[337488518,1725697837453,-1355.02815999,0.000126,2]
[337488519,1725697837464,-8076.7199976,0.000126,2]
[337488520,1725697837568,-473.3383626,0.000126,2]
[337488521,1725697837579,-5146.02669942,0.000126,2]
[337488522,1725697837590,-372.94911677,0.000126,2]
[337488523,1725697837602,-1720.75393469,0.000126,2]
[337488524,1725697837613,-16084.90153251,0.000126,2]
[337488525,1725697837624,-1845.12438658,0.000126,2]
[337488526,1725697837635,-495.71011094,0.000126,2]
[337488527,1725697837647,-3353.94450525,0.000126,2]
[337488528,1725697837658,-667.24633407,0.000126,2]
[337488529,1725697837669,-3547.97188898,0.000126,2]
[337488530,1725697837680,-44806.43158361,0.000126,2]
[337488531,1725697837696,-616.0766574,0.000126,2]
[337488532,1725697837707,-600.5,0.000126,2]
[337488533,1725697837719,-19802.02648502,0.000126,2]
[337488534,1725697837730,-91236.66848207,0.000126,2]
[337488535,1725697837740,-100000.0,0.000126,2]
[337488536,1725697837751,-484.8763,0.000126,2]
[337488537,1725697837760,-1254.54809108,0.0001261,2]
[337488538,1725697837771,-5889.56773377,0.00012767,2]
[337488539,1725697837780,-323.60847798,0.000129,2]
[337488540,1725697837789,-1254.54809108,0.000129,2]
[337488541,1725697837799,-15260.17,0.00012943,2]
[337488542,1725697837809,-193.18,0.00012969,2]
[337488543,1725697837821,-3406.88,0.00012969,2]
[337488544,1725697837831,-500.0,0.00012973,2]
[337488545,1725697837845,-161.85,0.0001299,2]
[337488546,1725697837860,-161.85,0.0001299,2]
[337488547,1725697837874,-161.85,0.0001299,2]
[337488548,1725697837889,-161.85,0.0001299,2]
[337488549,1725697837899,-161.85,0.0001299,2]
[337488550,1725697837913,-161.85,0.0001299,2]
[337488551,1725697837926,-161.85,0.0001299,2]
[337488552,1725697837939,-161.85,0.0001299,2]
[337488554,1725697837952,-161.85,0.0001299,2]
[337488555,1725697837965,-236.32,0.00012998,2]
[337488556,1725697837979,-333.27,0.00012999,2]
[337488557,1725697837992,-85489.62250148,0.00013,2]
[337488558,1725697838010,-1079287.04093459,0.00013,2]
[337488584,1725697839500,-349.4,0.00013,2]
[337488585,1725697839515,-875.6832297,0.00013,2]
[337488586,1725697839665,-473.28023069,0.00013,2]
[337488587,1725697839678,-1917.30000001,0.00013,2]
[337488588,1725697839694,-3406.05082035,0.00013,2]
[337488589,1725697839783,-297.50798804,0.00013,2]
[337488590,1725697839837,-1002.6275,0.00013,2]
[337488593,1725697839852,-271.37002482,0.00013,2]
[337488633,1725697843033,-2082.32537501,0.00013,2]
[337488634,1725697843047,-421.63768648,0.00013,2]
[337488635,1725697843058,-4911.22029618,0.00013,2]
[337488636,1725697843078,-916.74900749,0.00013,2]
[337488637,1725697843091,-1080096.53523473,0.00013,2]
[337488638,1725697843102,-1404.61876171,0.00013,2]
[337488639,1725697843113,-1143.27441064,0.00013,2]
[337488640,1725697843169,-374.17344992,0.00013,2]
[337488641,1725697843181,-16480.55043091,0.00013,2]
[337488642,1725697843191,-776.21235127,0.00013,2]
[337488643,1725697843258,-410.3364006,0.00013,2]
[337488644,1725697843269,-776.06146747,0.00013,2]
[337488645,1725697843293,-4568.00000004,0.00013,2]
[337488647,1725697845485,-3168.79943377,0.000129,2]
[337488648,1725697845543,-3281.33309799,0.000129,2]
[337488649,1725697845553,-4764.93196484,0.00013,2]
[337488650,1725697845565,-493.788361,0.00013,2]
[337488651,1725697845577,-487.94323696,0.00013,2]
[337488652,1725697845604,-760.21647643,0.00013,2]
[337488653,1725697845616,-283.49453764,0.00013,2]
[337488654,1725697845630,-1217.64466643,0.00013,2]
[337488655,1725697845641,-32947.27196235,0.00013,2]
[337488656,1725697845665,-57377.60685682,0.00013,2]
[337488657,1725697845682,-1134.13449414,0.00013,2]
[337488658,1725697845693,-12410.3791457,0.00013,2]
[337488659,1725697845705,-261.60174887,0.00013,2]
[337488660,1725697845716,-1128.75496496,0.00013,2]
[337488661,1725697845728,-1064.73000001,0.00013,2]
[337488662,1725697845739,-434.012,0.00013,2]
[337488663,1725697845750,-299.07844765,0.00013,2]
[337488664,1725697845762,-9923.04667477,0.00013,2]
[337488665,1725697845774,-1264.7968584,0.00013,2]
[337488666,1725697845787,-1453.49,0.00013,2]
[337488667,1725697845798,-1110.1255479,0.00013,2]
[337488668,1725697845810,-3596.64044679,0.00013,2]
[337488669,1725697845822,-8843.92475302,0.00013,2]
[337488670,1725697845833,-341.13191507,0.00013,2]
[337488671,1725697845845,-55489.51273293,0.00013,2]
[337488672,1725697845856,-2701.23101814,0.00013,2]
[337488673,1725697845868,-4694.20147376,0.00013,2]
[337488674,1725697845880,-290.05976315,0.00013,2]
[337488675,1725697845891,-268.25,0.00013,2]
[337488676,1725697845902,-1904.96994,0.00013,2]
[337488677,1725697845913,-2372.81520537,0.00013,2]
[337488678,1725697845924,-1917.4034452,0.00013,2]
[337488679,1725697845935,-678.72349785,0.00013,2]
[337488680,1725697845946,-422.91126348,0.00013,2]
[337488681,1725697845957,-547.44,0.00013,2]
[337488683,1725697845968,-3398.41651,0.00013,2]
[337488684,1725697845983,-1744.32203037,0.00013,2]
[337488685,1725697845994,-417.95823573,0.00013,2]
[337488686,1725697846004,-7416.2350021,0.00013,2]
[337488687,1725697846015,-8385.9918445,0.00013,2]
[337488688,1725697846030,-850.03340466,0.00013,2]
[337488689,1725697846052,-1531.57713695,0.00013,2]
[337488690,1725697846063,-2763.97217333,0.00013,2]
[337488694,1725698073830,551.96,0.00011022,2]
[337488695,1725698111159,250.0,0.00011618,2]
[337488696,1725698255790,500.0,0.00011,2]
[337488697,1725698305246,250.0,0.00011576,2]
[337488698,1725698322744,166.73,0.00011576,2]
[337488699,1725698354221,235.26,0.0001158,2]
[337488701,1725698454884,250.0,0.00011604,2]
[337488702,1725698470799,150.0,0.00011604,2]
[337488703,1725698554426,524.36,9.643e-05,2]
[337488704,1725698554634,524.36,0.00011907,2]
[337488705,1725698627911,200.0,0.00011561,2]
[337488706,1725698662836,1000.0,0.00011539,2]
[337488707,1725698695932,250.0,0.00011499,2]
[337488709,1725698754458,213.69,0.00010959,2]
[337488710,1725698820882,299.96,0.00011525,2]
[337488711,1725698822622,5167.79,0.00011525,2]
[337488717,1725698828903,150.0,0.00011688,2]
[337488718,1725698898593,250.0,0.00011535,2]
[337488719,1725698929438,235.26,0.00011552,2]
[337488758,1725698966146,250.0,0.00011547,2]
[337488766,1725699031594,-189.98,0.00012116,2]
[337488767,1725699031603,-628.84444517,0.00012224,2]
[337488768,1725699031614,-128.94706145,0.00012224,2]
[337488769,1725699031624,-150.0,0.00012301,2]
[337488770,1725699031633,-478.18462194,0.00012321,2]
[337488771,1725699031650,-279.69657276,0.00012321,2]
[337488772,1725699031660,-662.54834617,0.00012321,2]
[337488773,1725699031672,-1549.88045913,0.00012321,2]
[337488774,1725699031681,-2970.31,0.00012324,2]
[337488775,1725699031690,-300.0,0.00012326,2]
[337488776,1725699031699,-146.45768772,0.00012327,2]
[337488777,1725699031710,-2823.85231228,0.00012327,2]
[337488778,1725699031719,-1566.36350658,0.00012331,2]
[337488779,1725699031732,-1403.94649342,0.00012331,2]
[337488780,1725699031742,-2970.31,0.00012334,2]
[337488781,1725699031751,-2970.31,0.00012337,2]
[337488782,1725699031760,-3498.33,0.00012337,2]
[337488783,1725699031770,-150.99,0.0001234,2]
[337488784,1725699031779,-299.99,0.0001234,2]
[337488785,1725699031788,-499.99,0.0001234,2]
[337488786,1725699031797,-2970.31,0.0001234,2]
[337488787,1725699031806,-1800.46620324,0.00012343,2]
[337488788,1725699031817,-661.28690355,0.00012343,2]
[337488789,1725699031829,-508.55689321,0.00012343,2]
[337488790,1725699031838,-171.15310679,0.00012347,2]
[337488791,1725699031849,-2799.15689321,0.00012347,2]
[337488792,1725699031859,-317.17754796,0.0001235,2]
[337488793,1725699031870,-711.6,0.0001235,2]
[337488794,1725699031881,-1941.53245204,0.0001235,2]
[337488795,1725699031891,-217.10401946,0.00012353,2]
[337488796,1725699031903,-2753.20598054,0.00012353,2]
[337488797,1725699031912,-2970.31,0.00012356,2]
[337488798,1725699031922,-150.0,0.00012359,2]
[337488799,1725699031931,-2970.31,0.0001236,2]
[337488801,1725699031941,-2970.31,0.00012363,2]
[337488803,1725699031951,-2970.31,0.00012366,2]
[337488805,1725699031960,-2925.93608617,0.00012369,2]
[337488807,1725699031971,-44.37391383,0.00012369,2]
[337488809,1725699031981,-2970.31,0.00012373,2]
[337488811,1725699031993,-634.95235632,0.00012376,2]
[337488860,1725699037649,-1994.19640253,0.00012376,2]
[337488861,1725699037661,-341.16124115,0.00012376,2]
[337488862,1725699037670,-1960.53827549,0.00012379,2]
[337488863,1725699038134,-990.45993,0.00012379,2]
[337488864,1725699038147,-19.31179451,0.00012379,2]
[337488865,1725699038157,-385.3296612,0.00012382,2]
[337488866,1725699038170,-2584.9803388,0.00012382,2]
[337488867,1725699038179,-208.21379576,0.00012499,2]
[337488868,1725699038188,-503.9333,0.000125,2]
[337488869,1725699038197,-1726.18875457,0.000125,2]
[337488870,1725699038208,-308.66866659,0.000125,2]
[337488871,1725699038219,-3545.23258283,0.000125,2]
[337488872,1725699038237,-94419.90999601,0.000125,2]
[337488873,1725699038247,-6001.30454388,0.000125,2]
[337488874,1725699038255,-2000.0,0.000126,2]
[337488875,1725699038265,-6001.30454383,0.00012767,2]
[337488876,1725699038278,-9805.6412,0.00012873,2]
[337488877,1725699038288,-272.8767,0.00012873,2]
[337488878,1725699038298,-1000.0,0.00012873,2]
[337488879,1725699038309,-7500.0,0.00012873,2]
[337488880,1725699038318,-171.17415423,0.000129,2]
[337488881,1725699038328,-500.0,0.000129,2]
[337488882,1725699038337,-4300.0883545,0.000129,2]
[337488883,1725699038347,-299.96,0.00012965,2]
[337488884,1725699038358,-500.0,0.00012972,2]
[337488885,1725699038368,-500.0,0.00012972,2]
[337488886,1725699038379,-500.0,0.00012972,2]
[337488887,1725699038389,-376.36838384,0.00012972,2]
[337488888,1725699038399,-221.65689827,0.00012972,2]
[337488889,1725699038409,-279871.95,0.00012973,2]
[337488890,1725699038421,-500.0,0.00012973,2]
[337488891,1725699038433,-200.0,0.00012973,2]
[337488892,1725699038443,-511.8498062,0.00012973,2]
[337488893,1725699038454,-429.32637788,0.00012973,2]
[337488894,1725699038463,-500.0,0.00012973,2]
[337488895,1725699038473,-161.87,0.00012976,2]
[337488896,1725699038483,-1000.0,0.00012981,2]
[337488897,1725699038492,-784.0,0.00012986,2]
[337488898,1725699038502,-97875.0,0.00012986,2]
[337488899,1725699038511,-256.95197991,0.00012986,2]
[337488900,1725699038520,-166.87990777,0.00012989,2]
[337488901,1725699038529,-796745.94758515,0.0001299,2]
[337488902,1725699038540,-814.95498,0.0001299,2]
[337488903,1725699038551,-3687863.0967474,0.00013,2]
[337488904,1725699038564,-397.72222246,0.00013,2]
[337488905,1725699038576,-1925.65000005,0.00013,2]
[337488906,1725699038588,-3500.51760241,0.00013,2]
[337488907,1725699038600,-865.69,0.00013,2]
[337488908,1725699038612,-358.71361555,0.00013,2]
[337488909,1725699038626,-4186.27582778,0.00013,2]
[337488910,1725699038637,-7975.09654811,0.00013,2]
[337488911,1725699038648,-335.29426812,0.00013,2]
[337488912,1725699038660,-688.86,0.00013,2]
[337488944,1725699039617,-325.57201946,0.00013,2]
[337488945,1725699039676,-1922.42255462,0.00013,2]
[337488946,1725699039688,-2422.93774298,0.00013,2]
[337488947,1725699039734,-7263.84919311,0.00013,2]
[337488948,1725699039749,-1950.0,0.00013,2]
[337488949,1725699039793,-14379.00495764,0.00013,2]
[337488950,1725699039904,-285.12435591,0.00013,2]
[337488951,1725699039916,-1139.26675642,0.00013,2]
[337488952,1725699039928,-574.03358918,0.00013,2]
[337488953,1725699039940,-858.14295306,0.00013,2]
[337488954,1725699039952,-4463.28178376,0.00013,2]
[337488955,1725699040069,-318.9,0.00013,2]
[337488956,1725699040082,-570.974,0.00013,2]
[337488980,1725699042615,-321.37422598,0.00012873,2]
[337488981,1725699042625,-194.43684102,0.00013,2]
[337488983,1725699042636,-475.33246739,0.00013,2]
[337488984,1725699042647,-565.99524606,0.00013,2]
[337488985,1725699042659,-9351.87391616,0.00013,2]
[337488987,1725699043086,-356531.10749081,0.00013,2]
[337488988,1725699043097,-250983.26524667,0.00013,2]
[337488989,1725699043109,-597365.5193401,0.00013,2]
[337488990,1725699043118,-2926.1887268,0.00013,2]
[337488991,1725699043128,-500.0,0.00013014,2]
[337488992,1725699043137,-6001.30454383,0.00013033,2]
[337488993,1725699043147,-814.95498,0.0001312,2]
[337488994,1725699043157,-69773.0,0.000132,2]
[337488995,1725699043166,-814.95498,0.0001328,2]
[337488996,1725699043176,-6001.30454383,0.000133,2]
[337488997,1725699043185,-814.95498,0.0001343,2]
[337488998,1725699043195,-255.0,0.00013446,2]
[337488999,1725699043204,-158.49,0.00013496,2]
[337489000,1725699043213,-925.0,0.00013498,2]
[337489001,1725699043225,-166.73,0.00013506,2]
[337489002,1725699043235,-500.0,0.00013521,2]
[337489003,1725699043244,-420.0,0.00013527,2]
[337489004,1725699043253,-500.0,0.00013546,2]
[337489005,1725699043264,-500.0,0.00013555,2]
[337489006,1725699043274,-500.0,0.00013564,2]
[337489007,1725699043283,-6001.30454383,0.00013567,2]
[337489008,1725699043292,-500.0,0.00013572,2]
[337489009,1725699043302,-500.0,0.00013581,2]
[337489010,1725699043312,-500.0,0.0001359,2]
[337489011,1725699043321,-814.95498,0.0001359,2]
[337489012,1725699043331,-500.0,0.00013599,2]
[337489013,1725699043340,-500.0,0.00013608,2]
[337489014,1725699043349,-500.0,0.00013616,2]
[337489015,1725699043360,-500.0,0.00013625,2]
[337489016,1725699043369,-500.0,0.00013634,2]
[337489017,1725699043379,-500.0,0.00013643,2]
[337489018,1725699043389,-500.0,0.00013652,2]
[337489019,1725699043398,-500.0,0.0001366,2]
[337489020,1725699043407,-500.0,0.00013669,2]
[337489021,1725699043417,-500.0,0.00013678,2]
[337489022,1725699043429,-500.0,0.00013687,2]
[337489023,1725699043438,-500.0,0.00013696,2]
[337489024,1725699043448,-200.0,0.00013699,2]
[337489025,1725699043457,-150.0,0.00013699,2]
[337489026,1725699043467,-500.0,0.00013704,2]
[337489027,1725699043476,-500.0,0.00013713,2]
[337489028,1725699043486,-500.0,0.00013722,2]
[337489029,1725699043497,-500.0,0.00013731,2]
[337489030,1725699043506,-500.0,0.0001374,2]
[337489031,1725699043516,-500.0,0.00013748,2]
[337489032,1725699043525,-814.95498,0.0001375,2]
[337489033,1725699043535,-500.0,0.00013757,2]
[337489034,1725699043544,-500.0,0.00013766,2]
[337489035,1725699043554,-500.0,0.00013775,2]
[337489036,1725699043563,-500.0,0.00013784,2]
[337489037,1725699043573,-500.0,0.00013792,2]
[337489038,1725699043583,-500.0,0.00013801,2]
[337489039,1725699043593,-500.0,0.0001381,2]
[337489040,1725699043602,-500.0,0.00013819,2]
[337489041,1725699043611,-500.0,0.00013828,2]
[337489042,1725699043620,-6001.30454383,0.00013833,2]
[337489043,1725699043630,-500.0,0.00013836,2]
[337489044,1725699043639,-500.0,0.00013845,2]
[337489045,1725699043648,-500.0,0.00013854,2]
[337489046,1725699043657,-500.0,0.00013863,2]
[337489047,1725699043667,-500.0,0.00013872,2]
[337489048,1725699043676,-500.0,0.0001388,2]
[337489049,1725699043685,-500.0,0.00013889,2]
[337489050,1725699043694,-500.0,0.00013898,2]
[337489051,1725699043704,-4300.08835449,0.000139,2]
[337489052,1725699043713,-11507.0,0.000139,3]
[337489053,1725699043722,-500.0,0.00013907,2]
[337489054,1725699043731,-500.0,0.00013916,2]
[337489055,1725699043741,-500.0,0.00013924,2]
[337489056,1725699043750,-500.0,0.00013933,2]
[337489057,1725699043759,-500.0,0.00013942,2]
[337489058,1725699043769,-500.0,0.00013951,2]
[337489059,1725699043779,-500.0,0.0001396,2]
[337489060,1725699043788,-500.0,0.00013968,2]
[337489061,1725699043798,-500.0,0.00013977,2]
[337489062,1725699043807,-150.0,0.00013979,2]
[337489063,1725699043816,-1145.0,0.00013979,2]
[337489064,1725699043825,-150.0,0.00013979,2]
[337489065,1725699043834,-1078.0,0.00013979,2]
[337489066,1725699043843,-500.0,0.00013986,2]
[337489067,1725699043853,-500.0,0.00013995,2]
[337489068,1725699043863,-150.0,0.00014059,2]
[337489069,1725699043872,-6001.30454383,0.000141,2]
[337489070,1725699043881,-524.36,0.00014171,2]
[337489071,1725699043891,-211.825656,0.00014247,2]
[337489072,1725699043900,-6001.30454383,0.00014367,2]
[337489073,1725699043909,-1098.0,0.000144,2]
[337489074,1725699043919,-299.96,0.00014406,2]
[337489075,1725699043928,-150.0,0.0001442,2]
[337489076,1725699043937,-1000.0,0.00014423,2]
[337489077,1725699043947,-1000.0,0.00014499,2]
[337489078,1725699043956,-165.44824606,0.00014558,2]
[337489079,1725699043965,-11507.0,0.000146,5]
[337489080,1725699043975,-311.27857499,0.00014622,2]
[337489081,1725699043984,-405.0,0.00014633,2]
[337489082,1725699043994,-6001.30454383,0.00014633,2]
[337489083,1725699044003,-150.0,0.00014682,2]
[337489084,1725699044014,-300.0,0.0001477,2]
[337489085,1725699044023,-500.0,0.00014773,2]
[337489086,1725699044032,-518.19469465,0.00014773,2]
[337489087,1725699044042,-500.0,0.00014773,2]
[337489088,1725699044051,-300.0,0.0001478,2]
[337489089,1725699044061,-150.0,0.0001478,2]
[337489090,1725699044070,-400.0,0.0001479,2]
[337489091,1725699044080,-277.76276379,0.00014793,2]
[337489092,1725699044089,-151.0,0.00014794,2]
[337489093,1725699044099,-151.0,0.00014794,2]
[337489094,1725699044108,-500.0,0.00014794,2]
[337489095,1725699044117,-500.0,0.00014794,2]
[337489096,1725699044126,-500.0,0.00014794,2]
[337489097,1725699044136,-500.0,0.00014794,2]
[337489098,1725699044145,-500.0,0.00014794,2]
[337489099,1725699044154,-500.0,0.00014794,2]
[337489100,1725699044164,-500.0,0.00014794,2]
[337489101,1725699044173,-500.0,0.00014794,2]
[337489102,1725699044182,-500.0,0.00014794,2]
[337489103,1725699044191,-433.71665097,0.00014794,2]
[337489104,1725699044200,-151.0,0.00014794,2]
[337489105,1725699044209,-151.0,0.00014794,2]
[337489106,1725699044218,-194.979134,0.00014794,2]
[337489107,1725699044227,-157.590837,0.00014794,2]
[337489108,1725699044237,-312.273243,0.00014794,2]
[337489109,1725699044246,-312.273243,0.00014794,2]
[337489110,1725699044255,-312.273243,0.00014794,2]
[337489111,1725699044265,-312.273243,0.00014794,2]
[337489112,1725699044274,-312.273243,0.00014794,2]
[337489113,1725699044283,-312.273243,0.00014794,2]
[337489114,1725699044293,-184.703818,0.00014794,2]
[337489115,1725699044446,-184.703818,0.00014794,2]
[337489116,1725699044463,-184.703818,0.00014794,2]
[337489117,1725699044473,-184.703818,0.00014794,2]
[337489118,1725699044483,-184.703818,0.00014794,2]
[337489119,1725699044494,-184.703818,0.00014794,2]
[337489120,1725699044504,-151.0,0.00014794,2]
[337489121,1725699044513,-151.0,0.00014794,2]
[337489122,1725699044522,-151.0,0.00014794,2]
[337489123,1725699044531,-151.0,0.00014794,2]
[337489124,1725699044541,-151.0,0.00014794,2]
[337489125,1725699044550,-151.0,0.00014794,2]
[337489126,1725699044559,-553.26,0.00014794,2]
[337489127,1725699044568,-553.26,0.00014794,2]
[337489128,1725699044577,-500.0,0.00014794,2]
[337489129,1725699044586,-553.26,0.00014794,2]
[337489130,1725699044595,-456.23903089,0.00014794,2]
[337489131,1725699044604,-553.26,0.00014794,2]
[337489132,1725699044613,-553.26,0.00014794,2]
[337489133,1725699044622,-553.26,0.00014794,2]
[337489134,1725699044631,-553.26,0.00014794,2]
[337489135,1725699044640,-553.26,0.00014794,2]
[337489136,1725699044649,-553.26,0.00014794,2]
[337489137,1725699044658,-553.26,0.00014794,2]
[337489138,1725699044668,-553.26,0.00014794,2]
[337489139,1725699044677,-553.26,0.00014794,2]
[337489140,1725699044686,-553.26,0.00014794,2]
[337489141,1725699044695,-553.26,0.00014794,2]
[337489142,1725699044705,-553.26,0.00014794,2]
[337489143,1725699044714,-553.26,0.00014794,2]
[337489144,1725699044723,-553.26,0.00014794,2]
[337489145,1725699044732,-553.26,0.00014794,2]
[337489146,1725699044742,-553.26,0.00014794,2]
[337489147,1725699044751,-553.26,0.00014794,2]
[337489148,1725699044760,-553.26,0.00014794,2]
[337489149,1725699044769,-553.26,0.00014794,2]
[337489150,1725699044778,-553.26,0.00014794,2]
[337489151,1725699044787,-553.48258271,0.00014794,2]
[337489152,1725699044797,-662.52,0.00014794,2]